Workbook

Sheet Credit Card Transactions
A1: Date | B1: Details | C1: Category | D1: Withdrawal | E1: Deposit | F1: Balance
A2: 2023-05-27 | B2: CARRIED OVER | C2: Start | F2: 0
A3: 2023-05-27 | B3: Café Latte | C3: Food & Drink | D3: 5.9 | F3: =F2-TableTransactions[[#This Row],[Withdrawal]]+TableTransactions[[#This Row],[Deposit]] -> -5.9
A4: 2023-06-19 | B4: Supermarket | C4: Food & Drink | D4: 8.25 | F4: =F3-TableTransactions[[#This Row],[Withdrawal]]+TableTransactions[[#This Row],[Deposit]] -> -14.15
A5: 2023-06-19 | B5: Café Latte | C5: Food & Drink | D5: 8.5 | F5: =F4-TableTransactions[[#This Row],[Withdrawal]]+TableTransactions[[#This Row],[Deposit]] -> -22.65
A6: 2023-06-24 | B6: Clothes | C6: Presents | D6: 199.49 | F6: =F5-TableTransactions[[#This Row],[Withdrawal]]+TableTransactions[[#This Row],[Deposit]] -> -222.14
A7: 2023-06-30 | B7: ACE Cards | C7: Repayment | E7: 5.9 | F7: =F6-TableTransactions[[#This Row],[Withdrawal]]+TableTransactions[[#This Row],[Deposit]] -> -216.24
A8: 2023-07-31 | B8: ACE Cards | C8: Repayment | E8: 216.24 | F8: =F7-TableTransactions[[#This Row],[Withdrawal]]+TableTransactions[[#This Row],[Deposit]] -> 0
A9: 2023-10-03 | B9: Supermarket | C9: Food & Drink | D9: 25.56 | F9: =F8-TableTransactions[[#This Row],[Withdrawal]]+TableTransactions[[#This Row],[Deposit]] -> -25.56
A10: 2023-10-23 | B10: Supermarket | C10: Food & Drink | D10: 15.71 | F10: =F9-TableTransactions[[#This Row],[Withdrawal]]+TableTransactions[[#This Row],[Deposit]] -> -41.27
A11: 2023-10-28 | B11: Supermarket | C11: Food & Drink | D11: 16.92 | F11: =F10-TableTransactions[[#This Row],[Withdrawal]]+TableTransactions[[#This Row],[Deposit]] -> -58.19
A12: 2023-11-11 | B12: Supermarket | C12: Food & Drink | D12: 32.69 | F12: =F11-TableTransactions[[#This Row],[Withdrawal]]+TableTransactions[[#This Row],[Deposit]] -> -90.88
A13: 2023-11-14 | B13: Supermarket | C13: Food & Drink | D13: 16.13 | F13: =F12-TableTransactions[[#This Row],[Withdrawal]]+TableTransactions[[#This Row],[Deposit]] -> -107.01

Sheet Formula
B2: Month | C2: Amount Owed
B3: May | C3: =SUM(_xlfn.CHOOSECOLS(_xlfn._xlws.FILTER(TableTransactions[],TEXT(TableTransactions[Date],"mmm")=B3, 0),4)) -> 5.9
B4: Jun | C4: =SUM(_xlfn.CHOOSECOLS(_xlfn._xlws.FILTER(TableTransactions[],TEXT(TableTransactions[Date],"mmm")=B4, 0),4)) -> 216.24
B5: Jul | C5: =SUM(_xlfn.CHOOSECOLS(_xlfn._xlws.FILTER(TableTransactions[],TEXT(TableTransactions[Date],"mmm")=B5, 0),4)) -> 0
B6: Oct | C6: =SUM(_xlfn.CHOOSECOLS(_xlfn._xlws.FILTER(TableTransactions[],TEXT(TableTransactions[Date],"mmm")=B6, 0),4)) -> 58.19
B7: Nov | C7: =SUM(_xlfn.CHOOSECOLS(_xlfn._xlws.FILTER(TableTransactions[],TEXT(TableTransactions[Date],"mmm")=B7, 0),4)) -> 48.82

Sheet Lambda
B2: References
B3: Excel LAMBDA function: how to write, calculate and use (ablebits.com)
B7: Month | C7: Amount Owed
B8: Oct | C8: =AmountOwedLambda(B8) -> 58.19
B9: Nov | C9: =AmountOwedLambda(B9) -> 48.82

Sheet Pivot Table
C2: Amount Owed
B3: May | C3: 5.9
B4: Jun | C4: 216.24
B5: Jul
B6: Oct | C6: 58.19
B7: Nov | C7: 48.82

Sheet Power Query
B1: References
B2: Create a parameter query (Power Query) - Microsoft Support
B3: Parameters - Power Query | Microsoft Learn
B6: Basic Table | E6: Basic Table (w/ Month and Year) | I6: Parameterised Query | K6: 1) Input Month | M6: 2) Filter Month | O6: Filtered Query
B8: Month | C8: Amount Owed | E8: Month | F8: Year | G8: Amount Owed | I8: Amount Owed | K8: Month | M8: FilterMonthValue | O8: MonthName | P8: Amount Owed
B9: May | C9: 5.9 | E9: 5 | F9: 2023 | G9: 5.9 | I9: 5.9 | K9: Oct | M9: Oct | O9: Oct | P9: 58.19
B10: Jun | C10: 216.24 | E10: 6 | F10: 2023 | G10: 216.24
B11: Jul | E11: 7 | F11: 2023
B12: Oct | C12: 58.19 | E12: 10 | F12: 2023 | G12: 58.19
B13: Nov | C13: 48.82 | E13: 11 | F13: 2023 | G13: 48.82

Sheet VBA
B2: Month | C2: Amount Owed
B3: May | C3: =AmountOwed(B3) -> 5.9
B4: Jun | C4: =AmountOwed(B4) -> 216.24
B5: Jul | C5: =AmountOwed(B5) -> 0
B6: Oct | C6: =AmountOwed(B6) -> 58.19
B7: Nov | C7: =AmountOwed(B7) -> 48.82
